Cogmind - Beta 9.1 @@@ ROGUE MODE // 2019.10.31 @ 17:25:37 // Halloween2019/Abominations Player: Gitida Result: Destroyed by Lesser Abomination with Etherial Claws Performance ------------- Evolutions (0) 0 Regions Visited (1) 200 Robots Destroyed (5) 25 Value Destroyed (204) 204 Prototype IDs (2) 40 Alien Tech Used (0) 0 Bonus (0) 0 TOTAL SCORE: 469 Bonus ------- None Cogmind --------- Core Integrity 0/250 Matter 216/300 Energy 99/100 System Corruption 0% Temperature Cool (0) Location -10/Materials Parts ------- Power (1) Propulsion (2) Utility (2) Small Storage Unit Visual Processing Unit Weapon (2) Light Assault Rifle Inventory (6) Peak State ------------ Power Ion Engine Propulsion Light Treads Light Treads Utility Small Storage Unit Visual Processing Unit Weapon Assault Rifle Light Assault Rifle Inventory Light Ion Engine Medium Laser Light Assault Rifle [Rating: 8] Favorites ----------- Power Ion Engine Engine Ion Engine Propulsion Light Treads Treads Light Treads Utility Small Storage Unit Storage Small Storage Unit Processor Visual Processing Unit Weapon Assault Rifle Energy Gun Medium Laser Ballistic Gun Assault Rifle Build | -11 -10 ------- Run | Scr Mat Slots Evolved . | . . Power . | . . Propulsion . | . . Utility . | . . Weapon . | . . Parts Attached 11 | 6 5 Power 2 | 1 1 Engine 2 | 1 1 Core . | . . Reactor . | . . Propulsion 2 | 2 . Treads 2 | 2 . Leg . | . . Wheel . | . . Hover . | . . Flight . | . . Utility 2 | 1 1 Device . | . . Storage 1 | 1 . Processor 1 | . 1 Hackware . | . . Protection . | . . Artifact . | . . Weapon 5 | 2 3 Energy Gun 1 | . 1 Energy Cannon . | . . Ballistic Gun 4 | 2 2 Ballistic Cannon . | . . Launcher . | . . Special Weapon . | . . Impact Weapon . | . . Slashing Weapon . | . . Piercing Weapon . | . . Special Melee Weapon . | . . Unidentified Prototypes . | . . Parts Lost 6 | . 6 Power 1 | . 1 Propulsion 2 | . 2 Utility . | . . Weapon 3 | . 3 Highest Loss Streak 6 | . 6 Average Slot Usage (%) 92 | . 92 Engine 14 | . 14 Treads 25 | . 25 Storage 14 | . 14 Processor 9 | . 9 Ballistic Gun 26 | . 26 Naked Turns . | . . Heaviest Build 12 | 12 12 Greatest Support 40 | 40 40 Greatest Overweight (x) 1 | . 1 Average Overweight (x) . | . . Largest Inventory Capacity 6 | 6 6 Average Capacity 5 | 5 6 Most Carried 4 | 4 4 Average Carried 2 | 1 2 Final Capacity 6 | 6 6 Final Carried 2 | 2 . Class Distribution -------------------- 100% | Mutant Dominant Class ---------------- Mutant | -10/Materials Resources | -11 -10 ----------- Run | Scr Mat Matter Collected 230 | 204 26 Remotely . | . . Salvage Created 179 | 22 157 Parts 15 | 4 11 Haulers Intercepted . | . . Recyclers Shooed . | . . Parts Field Recycled . | . . Retrieved Matter . | . . Parts Self-Destructed . | . . Prevented . | . . Kills | -11 -10 ------- Run | Scr Mat Combat Hostiles Destroyed 3 | . 3 Guns 3 | . 3 Classes Destroyed 2 | 1 1 Tunneler 2 | 2 . Abomination 3 | . 3 Best Kill Streak 2 | 1 2 Combat Bots Only 2 | . 2 Max Kills in Single Turn 1 | 1 1 Gunslinging . | . . Exploded . | . . Melee . | . . Uniques/NPCs Destroyed . | . . Combat | -11 -10 -------- Run | Scr Mat Damage Taken 1170 | . 1170 Core 270 | . 270 Absorbed by Shields . | . . Core Remaining (%) 100 | 100 . Volleys Fired 31 | . 31 Largest 2 | . 2 Hottest 70 | . 70 Shots Fired 56 | . 56 Gun 56 | . 56 Cannon . | . . Launcher . | . . Special . | . . Kinetic 54 | . 54 Thermal 2 | . 2 Explosive . | . . Electromagnetic . | . . Robot Hit Streak 24 | . 24 Robot Miss Streak 1 | . 1 Penetration Max . | . . Secondary Targets . | . . Shots Hit Robots 48 | . 48 Core Hits 13 | . 13 Critical Hits . | . . Critical Kills . | . . Critical Parts Destroyed . | . . Melee Attacks . | . . Impact . | . . Slashing . | . . Piercing . | . . Sneak Attacks . | . . Combat Hostiles . | . . Follow-up Attacks . | . . Damage Inflicted 483 | 25 458 Guns 449 | . 449 Cannons . | . . Explosions . | . . Melee . | . . Ramming 34 | 25 9 Kinetic 419 | . 419 Thermal 30 | . 30 Explosive . | . . Electromagnetic . | . . Impact . | . . Slashing . | . . Piercing . | . . Highest Corruption . | . . Average Corruption . | . . Corruption Purged . | . . Overload Shots . | . . Overflow Damage . | . . Projectiles . | . . Explosions . | . . Melee . | . . Knockbacks 1 | 1 . Impact 1 | 1 . Kinetic . | . . Secondary . | . . Self-Inflicted Damage . | . . Shots . | . . Rammed 16 | 11 5 Targets Rammed 18 | 13 5 Kicked . | . . Crushed 2 | 2 . Highest Temperature 18 | . 18 Average Temperature 10 | . 10 Received Heat Transfer . | . . Siege Activations . | . . Robots Corrupted . | . . Combat Hostiles . | . . Parts Fried . | . . Impact Corruptions . | . . Robots Melted . | . . Combat Hostiles . | . . Parts Melted . | . . Heat Transferred 18 | . 18 Parts Sabotaged . | . . Parts Stolen . | . . Parts Stripped . | . . Power Chain Reactions . | . . Missiles Intercepted . | . . Alert | -11 -10 ------- Run | Scr Mat Peak Influence 26 | 10 26 Average Influence 8 | 1 11 Maximum Alert Level . | . . Low Security (%) 100 | . . Level 1 . | . . Level 2 . | . . Level 3 . | . . Level 4 . | . . Level 5 . | . . High Security . | . . Max Security . | . . Squads Dispatched 2 | . 2 Investigation 1 | . 1 Extermination . | . . Reinforcement . | . . Assault 1 | . 1 Garrison . | . . Intercept . | . . Construction Impeded . | . . Haulers Reinforced . | . . Stealth | -11 -10 --------- Run | Scr Mat Distress Signals 3 | . 3 Communications Jammed . | . . Distress Signals . | . . Times Spotted 5 | . 5 Peak Tracking Total 1 | . 1 Tactical Retreats . | . . Traps | -11 -10 ------- Run | Scr Mat Traps Triggered . | . . Indirectly . | . . Trap Hack Attempts . | . . Triggered . | . . Disarmed . | . . Reprogrammed . | . . Reused . | . . Traps Extracted . | . . Installed . | . . Triggered . | . . Machines | -11 -10 ---------- Run | Scr Mat Machines Disabled 1 | . 1 Max in Single Turn 1 | . 1 Machines Sabotaged . | . . Garrisons Compromised . | . . Overloaded Fab Kills . | . . Fab Network Shutdowns . | . . Hacking | -11 -10 --------- Run | Scr Mat Machines Accessed 3 | . 3 Terminals 3 | . 3 Fabricators . | . . Repair Stations . | . . Recycling Units . | . . Scanalyzers . | . . Garrison Access . | . . Total Hacks 13 | . 13 Successful 5 | . 5 Failed 8 | . 8 Catastrophic 3 | . 3 Database Lockouts . | . . Manual 8 | . 8 Terminals 13 | . 13 Fabricators . | . . Repair Stations . | . . Recycling Units . | . . Scanalyzers . | . . Garrison Access . | . . Terminal Hacks 5 | . 5 Record 1 | . 1 Prototype ID Bank 1 | . 1 Branch Access Points 1 | . 1 Zone Layout 2 | . 2 Fabricator Hacks . | . . Repair Station Hacks . | . . Recycling Unit Hacks . | . . Scanalyzer . | . . Garrison Access Hacks . | . . Unauthorized Hacks . | . . Terminals . | . . Fabricators . | . . Repair Stations . | . . Recycling Units . | . . Scanalyzers . | . . Garrison Access . | . . Data Cores Recovered . | . . Used . | . . Hacking Detections 3 | . 3 Full Trace Events . | . . Feedback Events . | . . Feedback Blocked . | . . Robot Schematics Acquired . | . . Robots Built . | . . Matter . | . . Time . | . . Total Robot Build Rating . | . . Part Schematics Acquired . | . . Parts Built . | . . Matter . | . . Time . | . . Total Part Build Rating . | . . Parts Repaired . | . . Time . | . . Parts Recycled . | . . Recycled Matter . | . . Retrieved Matter . | . . Retrieved Components . | . . Parts Scanalyzed . | . . Part Schematics Acquired . | . . Parts Damaged . | . . Bothacking | -11 -10 ------------ Run | Scr Mat Used RIF Installer . | . . Robots Hacked . | . . Non-combat . | . . Combat . | . . Robot Hacks Applied . | . . Relay Couplers Released . | . . Robots Rewired . | . . Allies Hacked . | . . Hacks Repelled . | . . Allies | -11 -10 -------- Run | Scr Mat Total Allies . | . . Largest Group . | . . Highest-Rated Group . | . . Highest-Rated Ally . | . . Total Orders . | . . Ally Attacks . | . . Total Damage . | . . Kills . | . . Allies Corrupted . | . . Allies Melted . | . . Intel | -11 -10 ------- Run | Scr Mat Robot Analysis Total . | . . Derelict Logs Recovered . | . . Drone Launches . | . . Drone Recoveries . | . . Exploration | -11 -10 ------------- Run | Scr Mat Turns Passed 373 | 137 236 Spaces Moved 157 | 69 88 Core 7 | 6 1 Treads 150 | 63 87 Legs . | . . Wheels . | . . Hover . | . . Flight . | . . Fastest Speed 50 | 50 100 Average Speed 155 | 150 159 Slowest Speed 160 | 160 160 Overloaded Moves . | . . Propulsion Burnouts . | . . Robots Hopped . | . . Cave-ins Triggered . | . . Exploration Rate (%) 14 | 4 24 Regions Visited 1 Branch Regions . Pre-discovered Areas . | . . Known Exits Taken . | . . Unknown Exits Taken 1 | 1 . Scrap Searched . | . . Spaces Dug . | . . Terrain Destroyed . | . . Melee . | . . Projectile . | . . AOE . | . . Actions | -11 -10 --------- Run | Scr Mat Total 227 | 95 132 Wait . | . . Move 156 | 68 88 Hop . | . . Pick Up 10 | 8 2 Fast Attach . | . . Attach 10 | 6 4 Detach . | . . Swap 1 | . 1 Drop 1 | . 1 Fire 31 | . 31 Melee . | . . Ram . | . . Kick . | . . Crush 18 | 13 5 Escape Stasis . | . . Rewire . | . . Trap . | . . Miscellaneous . | . . Route ------- -11/Scrapyard -10/Materials History --------- Turn | Location | Event 13 | -11/Scrapyard | Discovered new exit (range 15) 138 | -11/Scrapyard | Entered Materials 167 | -10/Materials | Identified exit to Mines 305 | -10/Materials | Build established: Mutant 353 | -10/Materials | Core integrity fell below 50% 357 | -10/Materials | Core integrity fell below 20% 374 | -10/Materials | Destroyed by Lesser Abomination with Etherial Claws Last Messages --------------- Destroyed Datajack. Med. Laser destroyed. Lgt. Treads destroyed. Lesser Abomination destroyed. Lgt. Ion Engine springs to life within a quantum being. Lesser Abomination absorbs Sensor Array, Signal Interpreter. Lesser Abomination absorbs Lgt. Armor Plating. ALERT: Dispatching additional forces to engage threats. Lesser Abomination absorbs Hover Unit. Lgt. Assault Rifle destroyed. Ion Engine destroyed. Assault Rifle destroyed. Critical hit. Lgt. Treads destroyed. Lesser Abomination destroyed. Lgt. Ion Engine springs to life within a quantum being. K-01 Serf collects debris. Lesser Abomination absorbs Signal Interpreter. Lesser Abomination absorbs Sensor Array. Dropped Lgt. Ion Engine. Map ----- +----------------------------------------------------+ | | | | | | | | | | | | | ?????????????????????????????????????????? | | ?????????????????????????????????????????? | | ?????????????????????????????????????????? | | ?????????????????????????????????????????? | | ???????????????????????#####?????????????? | | ??????????????????????##"""##????????????? | | ?????????????????????##"|||"##???????????? | | ?????????????????????#"" ""#???????????? | | ?????????????????????# #???????????? | | ?????????????????????# > ????????????? | | ?????????????????????# ????????????? | | ?????????????????????# #???????????? | | ?????????????????????## ##???????????? | | ??????????????????????## ##########????? | | ???????????????????????# # #????? | | ???????????????????????# + """ #????? | | ???????????????????????# # """ #????? | | ???????????????????????# # """ #????? | | ???????????????????????# k # #????? | | ??????????????????###### @ #! """ "#????? | | ??????????????????# A*# """ T#????? | | ??????????????????# %%# """ "#????? | | ???????????######## # #????? | | ???????????# # """ ##########????? | | ???????????# # "" #?????????????? | | ???????????# " + """ #?????????????? | | ???????????# =! T # #?????????????? | | ???????????# =! " # #?????????????? | | ???????????# ##### #?????????????? | | ???????????########???# #?????????????? | | ??????????????????????# #?????????????? | | ??????????????????????# #?????????????? | | ??????????????????????# #########?????? | | ??????????????????????# % #?????? | | ??????????????????????# #?????? | | ??????????????????????# """ #?????? | | ??????????????????????# """"" #?????? | | ??????????????????????# /%""""" ###?????? | | ??????????????????????# """"" ######### | | ??????????????????????# """ # T # | | ??????????????????????# # # | | ????????????????####### # # | | ????????????????# # # | | ????????????????# # # | +----------------------------------------------------+ Best States ------------- Heat Dissipation 25 Energy Generation 10 Energy Capacity 250 Matter Stores 300 Matter Capacity 300 Sight Range 18 Terrain Scan Density 10 Evasion (%) 40 Recoil Reduction 2 Item Schematics ----------------- None Robot Schematics ------------------ None Fabricated ------------ Nothing Alien Tech Used ----------------- None Achievements -------------- None Challenges ------------ None Game ------ Seed PulseMachineWand Manual? 0 Play Time 00:06:14 Cumulative 110.0 hours Start 2019.10.31 @ 17:22:04 End 2019.10.31 @ 17:25:37 Sessions 1 Manual Loads 0 Difficulty Rogue Special Mode Halloween2019/Abominations Game No. 113 Rogue 113 Adventurer 0 Explorer 0 Win Type - Total 1 Types 1/0/0/0/0/0/0 Lore% 61 Gallery% 60 Achievement% 46 Wizard Run 0 Options --------- ASCII 0 Keyboard 0 Movement Numpad Keybinds 0 Fullscreen 1 Font 12/Terminus Map View 83x54 Tactical HUD 0 Map Filters NONE Filters NONE Steam 1 RUN: 857cf07c-fe75-4955-9a13-e0b581924d9b